bitfinex/quotes_ETHUSD_20250611
["timestamp","ask_amount","ask_price","bid_price","bid_amount"]
[1749651516547,0.04,2819.9,2819.0,4.30395721]
[1749651516548,0.04,2819.9,2819.4,13.54679112]
[1749651516766,0.04,2819.9,2819.4,10.0]
[1749651517049,0.04,2819.9,2819.4,13.54682918]
[1749651517210,0.04,2819.9,2819.6,10.0]
[1749651517550,0.6667,2821.1,2819.9,0.8286]
[1749651517857,0.6667,2821.1,2819.9,10.8286]
[1749651518065,0.6667,2821.1,2820.0,4.984]
[1749651518216,0.6667,2821.1,2820.4,40.0]
[1749651518416,0.7925,2821.0,2820.0,1.1196]
[1749651518734,0.7925,2821.0,2820.2,3.54573683]
[1749651518940,0.7925,2821.0,2820.1,10.0]
[1749651519257,0.6667,2821.1,2820.4,10.0]
[1749651519557,0.8278,2821.0,2820.0,1.16288892]
[1749651519711,0.6667,2821.1,2820.0,11.16288892]
[1749651520223,0.7628,2820.8,2820.3,3.54571401]
[1749651520425,0.7628,2820.8,2820.0,5.55502977]
[1749651520625,0.7628,2820.8,2819.7,1.117]
[1749651520928,0.7628,2820.8,2819.9,10.0]
[1749651521245,0.7628,2820.8,2820.0,10.0]
[1749651521419,0.7628,2820.8,2819.7,13.54645583]
[1749651521735,0.7628,2820.8,2820.1,3.54597145]
[1749651522052,0.7628,2820.8,2819.9,17.98665006]
[1749651522217,0.7628,2820.8,2820.0,3.54600089]
[1749651522417,0.7628,2820.8,2819.9,10.0]
[1749651522619,0.7628,2820.8,2819.9,13.54612285]
[1749651522916,0.7628,2820.8,2819.5,3.54670379]
[1749651523115,0.7628,2820.8,2819.7,3.54643364]
[1749651523348,0.7628,2820.8,2819.8,3.54635078]
[1749651523658,0.7628,2820.8,2819.6,3.54659545]
[1749651523659,0.7628,2820.8,2819.7,3.5464177]
[1749651523834,0.7628,2820.8,2819.8,3.5463475]
[1749651524238,0.7628,2820.8,2819.9,0.46014085]
[1749651524550,0.7628,2820.8,2819.9,10.46014085]
[1749651524737,0.7628,2820.8,2819.7,3.54638913]
[1749651524943,0.1768,2820.2,2819.8,10.0]
[1749651525145,0.9856,2820.2,2819.8,10.0]
[1749651525647,0.6667,2821.1,2819.7,0.1768]
[1749651525648,0.8285,2820.8,2819.7,0.1768]
[1749651525850,0.8285,2820.8,2820.2,3.54583752]
[1749651526047,0.8285,2820.8,2820.1,3.54586733]
[1749651526356,0.8285,2820.8,2819.8,10.0]
[1749651526544,0.8285,2820.8,2819.7,0.1768]
[1749651526719,0.8285,2820.8,2819.8,10.0]
[1749651527145,0.8285,2820.8,2820.2,10.0]
[1749651527332,0.8285,2820.8,2819.9,0.46014085]
[1749651527545,0.8285,2820.8,2819.6,0.46014085]
[1749651527746,0.8285,2820.8,2819.7,3.54639122]
[1749651528261,0.8285,2820.8,2819.7,3.54647657]
[1749651528443,1.4764,2821.1,2819.9,0.7957]
[1749651528645,1.4764,2821.1,2819.9,10.7957]
[1749651528860,0.8097,2820.8,2819.9,10.0]
[1749651529057,0.8097,2820.8,2820.2,3.54583726]
[1749651529227,0.005,2820.7,2820.2,3.54583726]
[1749651529423,0.005,2820.7,2820.2,10.0]
[1749651529762,0.005,2820.7,2819.8,10.0]
[1749651529920,0.005,2820.7,2820.0,10.0]
[1749651530121,0.005,2820.7,2819.8,10.0]
[1749651530122,0.7556,2820.6,2819.8,10.0]
[1749651530321,0.7556,2820.6,2819.8,3.54634472]
[1749651530660,0.7556,2820.6,2819.5,10.35601363]
[1749651530958,0.7556,2820.6,2819.8,3.54628064]
[1749651531325,0.7556,2820.6,2819.8,3.5462686]
[1749651531963,0.7556,2820.6,2819.9,3.54621542]
[1749651532327,0.55,2820.5,2819.1,0.46014085]
[1749651532534,0.55,2820.1,2818.8,3.54759117]
[1749651532738,0.7546,2820.0,2819.0,3.54726797]
[1749651532947,0.7546,2820.0,2819.0,10.0]
[1749651533152,0.7546,2820.0,2818.8,0.36038045]
[1749651533351,0.7953,2819.9,2818.8,3.54749768]
[1749651533737,0.7953,2819.9,2819.0,3.54727866]
[1749651533934,0.7953,2819.9,2818.9,4.00758411]
[1749651534141,0.7953,2819.9,2819.1,3.54717046]
[1749651534338,0.7953,2819.9,2818.9,0.46014085]
[1749651534637,0.7953,2819.9,2818.7,10.52821643]
[1749651534836,0.7621,2819.7,2818.6,3.54779038]
[1749651535039,0.7621,2819.7,2818.8,3.54759127]
[1749651535674,0.1768,2819.2,2818.8,3.54760891]
[1749651535834,0.1768,2819.2,2818.7,0.1768]
[1749651535835,0.7621,2819.1,2818.7,10.1768]
[1749651536381,0.7621,2819.1,2818.7,13.72446503]
[1749651536880,0.7621,2819.1,2818.7,10.1768]
[1749651537178,0.7621,2819.1,2818.7,0.1768]
[1749651537379,0.7621,2819.1,2818.9,3.54743]
[1749651537535,0.7621,2819.1,2818.7,0.1768]
[1749651537736,0.7621,2819.1,2818.7,3.72446309]
[1749651538089,5.047,2820.5,2819.1,10.0]
[1749651538090,0.7803,2819.4,2819.1,10.0]
[1749651538386,0.7803,2819.4,2818.7,10.0]
[1749651538592,0.7803,2819.4,2818.5,3.54789631]
[1749651538738,0.1768,2819.1,2818.6,0.1768]
[1749651539194,0.1768,2819.1,2818.6,3.72464895]
[1749651539486,0.7526,2819.0,2818.6,3.72464895]
[1749651539687,0.7526,2819.0,2818.7,3.54769394]
[1749651539894,0.7526,2819.0,2818.6,0.1768]
[1749651539895,0.7526,2819.0,2818.6,3.72465276]
[1749651540114,0.7526,2819.0,2818.6,0.1768]
[1749651540395,0.7526,2819.0,2818.6,3.72465823]
[1749651541355,0.7526,2819.0,2818.7,3.54773477]
[1749651541587,0.7526,2819.0,2818.6,10.1768]
[1749651541588,0.7526,2819.0,2818.6,13.7245952]
[1749651542192,0.7526,2819.0,2818.6,10.1768]
[1749651542396,0.7526,2819.0,2818.6,0.1768]
[1749651542571,0.7526,2819.0,2818.7,0.00396281]
[1749651545226,5.493354,2819.0,2818.7,0.00396281]
[1749651545428,6.0426894,2819.0,2818.7,0.00396281]
[1749651546602,5.493354,2819.0,2818.7,0.00396281]
[1749651546822,0.1768,2818.9,2818.7,3.55162576]
[1749651547033,4.740754,2819.0,2818.8,3.54760891]
[1749651547327,4.740754,2819.0,2818.9,14.53908306]
[1749651547504,3.6667965,2819.0,2818.9,14.53908306]
[1749651547701,0.9272,2820.1,2819.2,10.0]
[1749651548014,0.1768,2820.1,2819.9,3.54620465]
[1749651548313,0.1768,2820.1,2819.6,0.8148]
[1749651548314,0.1768,2820.1,2819.7,0.1768]
[1749651548513,0.7504,2820.4,2820.0,3.54609929]
[1749651548718,0.1768,2820.6,2820.1,3.54597354]
[1749651549016,0.1768,2820.6,2820.0,10.1768]
[1749651549218,0.1768,2820.6,2820.1,3.54589884]
[1749651549416,0.1768,2820.6,2820.0,13.72284206]
[1749651549917,0.1768,2820.6,2820.1,3.54590761]
[1749651550213,0.1768,2820.6,2820.0,0.1768]
[1749651550376,0.782,2820.7,2819.7,4.65238985]
[1749651550577,0.1768,2820.6,2820.1,0.1768]
[1749651550878,0.9588,2820.7,2820.2,3.72260873]
[1749651551112,0.9588,2820.7,2820.2,0.1768]
[1749651551679,0.9588,2820.7,2820.3,0.00396057]
[1749651552121,0.782,2820.7,2820.3,0.00396057]
[1749651552302,0.1768,2820.5,2820.3,0.00396057]
[1749651553094,0.782,2820.7,2820.3,0.00396057]
[1749651553319,0.9588,2820.7,2820.3,0.00396057]
[1749651553495,0.9588,2820.7,2820.3,3.54960757]
[1749651553816,0.9588,2820.7,2820.3,0.00396057]
[1749651554119,0.005,2820.7,2820.3,0.00396057]
[1749651554294,0.005,2820.7,2820.5,0.1768]
[1749651554484,0.005,2820.7,2820.6,3.54534496]
[1749651554684,0.005,2820.7,2820.5,3.72219922]
[1749651554899,0.005,2820.7,2820.6,3.54534496]
[1749651555108,0.005,2820.7,2820.6,13.54534496]
[1749651555293,0.005,2820.7,2820.6,14.29092673]
[1749651555495,0.005,2820.7,2820.0,0.8163417]
[1749651555730,0.005,2820.7,2820.0,0.35620085]
[1749651555889,0.005,2820.7,2820.0,10.0]
[1749651556102,0.005,2820.7,2820.0,10.35361635]
[1749651556323,0.005,2820.7,2820.2,10.0]
[1749651556635,0.005,2820.7,2820.0,1.45961635]
[1749651556836,0.005,2820.7,2820.1,13.54589204]
[1749651557412,0.757,2820.6,2820.1,10.0]
[1749651557627,0.005,2820.7,2820.1,10.0]
[1749651557795,0.005,2820.7,2820.2,3.54579676]
[1749651557990,0.005,2820.7,2820.1,10.0]
[1749651558192,0.005,2820.7,2819.9,4.37162466]
[1749651558418,0.005,2820.7,2820.2,10.0]
[1749651558618,0.005,2820.7,2820.0,10.35055356]
[1749651558821,0.005,2820.7,2820.2,3.54582147]
[1749651559331,0.797,2820.9,2820.3,3.54571437]
[1749651559522,0.797,2820.9,2820.2,13.54579131]
[1749651559717,0.797,2820.9,2820.1,13.54596542]
[1749651559917,0.797,2820.9,2820.2,3.54578965]
[1749651560131,0.797,2820.9,2820.2,3.54583048]
[1749651560434,0.797,2820.9,2820.2,10.0]
[1749651561005,0.797,2820.9,2820.3,3.54572208]
[1749651561205,0.797,2820.9,2820.2,13.54579103]
[1749651561417,0.797,2820.9,2820.1,10.0]
[1749651561937,0.797,2820.9,2820.1,13.54589309]
[1749651562240,0.797,2820.9,2820.2,3.54583568]
[1749651562631,0.797,2820.9,2819.8,1.74191451]
[1749651562632,0.797,2820.9,2819.8,10.17577366]
[1749651562836,0.797,2820.9,2819.4,10.51744078]
[1749651562837,0.7681,2820.4,2819.3,0.8103]
[1749651562998,0.7681,2820.2,2819.2,1.106]
[1749651563196,0.7681,2820.0,2819.2,1.106]
[1749651563837,0.7681,2820.0,2819.0,3.54728656]
[1749651564034,0.7681,2820.0,2819.3,3.54687611]
[1749651564535,0.7681,2820.0,2819.3,4.00708436]
[1749651564735,0.7681,2820.0,2819.3,4.00703268]
[1749651564907,4.428,2820.8,2819.4,4.11560411]
[1749651565111,14.94544078,2820.8,2819.5,3.54669714]
[1749651565334,14.94544078,2820.8,2819.4,3.5468053]
[1749651565536,0.1768,2820.0,2819.5,0.1768]
[1749651566297,3.875,2820.9,2819.5,1.28942328]
[1749651566498,0.3875,2820.8,2819.6,3.54648353]
[1749651566736,0.1768,2820.2,2819.7,4.0518]
[1749651566914,0.1768,2820.2,2819.7,7.59824751]
[1749651567096,0.1768,2820.2,2819.7,4.0518]
[1749651567295,0.6667,2821.1,2819.7,3.875]
[1749651567602,0.1768,2820.6,2820.1,0.1768]
[1749651567799,0.1768,2820.6,2820.2,3.54578654]
[1749651568038,0.8176,2820.9,2820.2,3.54578037]
[1749651568331,0.1768,2820.7,2820.3,3.5456821]
[1749651568634,0.1768,2820.9,2820.4,0.1768]
[1749651568832,0.8435,2821.1,2820.7,3.54511722]
[1749651569334,0.8435,2821.1,2820.6,0.1768]
[1749651569513,0.8435,2821.1,2820.6,3.7221345]
[1749651569715,0.8435,2821.1,2820.7,3.54521741]
[1749651569936,0.8435,2821.1,2820.6,0.1768]
[1749651570157,0.8435,2821.1,2820.4,10.45942328]
[1749651570158,0.6667,2821.1,2821.0,3.54484225]
[1749651570365,0.6667,2821.1,2820.5,3.54546991]
[1749651570366,0.6667,2821.1,2820.6,10.0]
[1749651570572,0.6667,2821.1,2820.8,10.1768]
[1749651570739,0.6667,2821.1,2820.8,0.1768]
[1749651571754,0.6667,2821.1,2820.9,3.54490396]
[1749651571935,0.6667,2821.1,2821.0,13.72164225]
[1749651572136,0.6667,2821.1,2821.0,21.98686406]
[1749651572470,0.6667,2821.1,2821.0,14.83746553]
[1749651572961,0.6667,2821.1,2821.0,18.69663025]
[1749651573457,0.6667,2821.1,2821.0,17.41139625]
[1749651573777,0.6667,2821.1,2821.0,17.81139625]
[1749651574059,0.6667,2821.1,2820.8,3.5450137]
[1749651574231,0.6667,2821.1,2820.7,3.54520195]
[1749651574436,0.6667,2821.1,2820.6,4.23579668]
[1749651574745,0.6667,2821.1,2820.6,0.36279668]
[1749651574950,0.8216,2821.0,2820.0,0.8028]
[1749651575145,0.8216,2821.0,2820.0,4.34877639]
[1749651575347,0.8216,2821.0,2820.1,3.54591289]
[1749651575546,0.8216,2821.0,2820.3,3.54569292]
[1749651575751,0.8216,2821.0,2820.2,2.130683]
[1749651575951,0.6667,2821.1,2820.6,0.8302]
[1749651576126,0.6667,2821.1,2820.9,3.54489343]
[1749651576527,0.6667,2821.1,2821.0,7.41684225]
[1749651576727,0.6667,2821.1,2821.0,17.41684225]
[1749651576927,0.6667,2821.1,2821.0,18.24724225]
[1749651577646,25.20061396,2821.4,2821.3,3.54446531]
[1749651578174,25.20061396,2821.4,2821.3,13.54446531]
[1749651578472,25.20061396,2821.4,2821.3,18.51946531]
[1749651579370,0.04,2822.9,2821.8,3.54383726]
[1749651579570,0.04,2822.9,2821.8,5.7561]
[1749651579777,0.04,2822.9,2822.0,10.0]
[1749651579948,0.04,2822.9,2822.3,3.54320943]
[1749651580148,0.04,2822.9,2822.4,3.884]
[1749651580983,0.04,2822.9,2822.4,7.42699202]
[1749651581180,0.04,2822.9,2822.4,3.884]
[1749651581473,0.04,2822.9,2822.6,3.5428117]
[1749651581838,0.04,2822.9,2822.8,3.54258183]
[1749651582287,0.04,2822.9,2822.8,7.60538183]
[1749651582589,0.14336581,2823.0,2822.8,0.98276914]
[1749651582890,0.14336581,2823.0,2822.9,20.48287333]
[1749651583089,0.14336581,2823.0,2822.9,17.71921633]
[1749651583243,0.14336581,2823.0,2822.9,17.77152233]
[1749651583446,0.14336581,2823.0,2822.9,15.00199528]
[1749651583786,0.14336581,2823.0,2822.9,23.52445161]
[1749651583970,0.14336581,2823.0,2822.9,18.43494828]
[1749651584144,0.14336581,2823.0,2822.9,18.43394828]
[1749651584346,0.14336581,2823.0,2822.9,21.97640461]
[1749651584576,0.14336581,2823.0,2822.9,13.45494828]
[1749651584780,0.14336581,2823.0,2822.9,10.8289]
[1749651585078,0.14336581,2823.0,2822.9,19.34735633]
[1749651585278,0.14336581,2823.0,2822.9,19.80677961]
[1749651585454,0.14336581,2823.0,2822.9,11.28832328]
[1749651585657,0.14336581,2823.0,2822.9,10.0]
[1749651585860,0.14336581,2823.0,2822.8,0.1768]
[1749651588592,0.7594,2822.9,2821.8,0.7559]
[1749651588835,0.7594,2822.9,2820.6,3.54531972]
[1749651588836,0.7594,2822.9,2821.7,0.35545903]
[1749651589200,0.7594,2822.7,2821.5,1.087]
[1749651589499,0.7594,2822.7,2821.7,4.0033611]
[1749651589652,0.1768,2822.5,2822.0,0.1768]
[1749651589999,0.1768,2822.2,2821.7,0.1768]
[1749651590153,0.7594,2822.1,2821.5,0.45942328]
[1749651590349,0.1768,2822.3,2821.8,0.1768]
[1749651590586,0.1768,2822.3,2821.8,0.63622328]
[1749651590889,0.1768,2822.0,2821.5,0.1768]
[1749651591090,0.1768,2822.0,2821.5,0.63622328]
[1749651591383,0.1768,2822.2,2821.7,0.1768]
[1749651591886,0.1768,2822.0,2821.5,0.1768]
[1749651592087,0.7594,2821.9,2821.5,0.1768]
[1749651593098,0.7594,2822.5,2821.6,0.45942328]
[1749651594060,0.7594,2822.5,2821.6,10.45942328]
[1749651594263,0.7594,2822.5,2821.6,0.45942328]
[1749651595486,0.7594,2822.5,2821.8,13.54375317]
[1749651595675,0.8004,2822.6,2821.9,1.21692328]
[1749651595882,0.8004,2822.6,2822.0,3.54352082]
[1749651596064,0.8004,2822.6,2822.1,0.45942328]
[1749651596411,0.8004,2822.6,2822.0,7.95416635]
[1749651596612,0.14336581,2823.0,2822.5,3.5429141]
[1749651596613,0.93166581,2823.0,2822.5,3.5429141]
[1749651596794,0.93166581,2823.0,2822.7,3.54266006]
[1749651597001,0.14336581,2823.0,2822.6,0.45942328]
[1749651597167,0.14336581,2823.0,2822.9,3.54245633]
[1749651597503,0.14336581,2823.0,2822.9,14.00187961]
[1749651597910,0.14336581,2823.0,2822.9,18.52284461]
[1749651598074,0.14336581,2823.0,2822.9,18.09925261]
[1749651598414,0.14336581,2823.0,2822.5,0.7998]
[1749651598610,0.14336581,2823.0,2822.4,10.0]
[1749651598972,0.14336581,2823.0,2822.2,4.7198]
[1749651599202,0.14336581,2823.0,2822.2,10.0]
[1749651599577,0.7612,2822.9,2822.0,3.918]
[1749651599779,0.7612,2822.9,2822.0,4.2138124]
[1749651600005,0.7612,2822.9,2822.1,0.29580192]
[1749651600717,0.7612,2822.9,2822.2,0.45942328]
[1749651600911,0.7612,2822.9,2822.1,0.29580192]
[1749651601068,0.7612,2822.9,2821.5,17.918885]
[1749651601271,0.7612,2822.9,2821.5,3.54415128]
[1749651601472,0.7612,2822.9,2821.5,0.45942328]
[1749651602023,0.7612,2822.9,2821.8,10.7915]
[1749651602333,0.7612,2822.9,2822.3,3.54314296]
[1749651602630,0.7612,2822.9,2822.3,3.54318898]
[1749651602924,0.7612,2822.9,2822.1,10.0]
[1749651603105,0.938,2822.9,2822.4,0.18003861]
[1749651603677,0.938,2822.9,2822.4,0.00323861]
[1749651604709,0.7612,2822.9,2822.4,0.00647722]
[1749651605685,0.7612,2822.9,2822.4,0.00323861]
[1749651606921,7.95416635,2822.5,2822.4,0.00323861]
[1749651607092,10.17628299,2822.5,2822.4,0.00323861]
[1749651607491,0.55,2822.2,2821.1,0.04]
[1749651607735,0.2578,2821.9,2821.1,0.04]
[1749651608610,0.2578,2821.9,2821.2,0.45942328]
[1749651608810,0.2578,2821.9,2821.1,0.04]
[1749651609039,0.825,2821.8,2821.1,0.04]
[1749651609749,0.55,2821.5,2821.1,0.04]
[1749651609952,0.7905,2821.4,2821.1,0.04]
[1749651610448,0.55,2821.3,2821.1,0.04]
[1749651610650,1.3669,2821.2,2821.1,0.04]
[1749651610837,2.29900664,2821.2,2821.1,0.04]
[1749651611039,0.8169,2821.2,2821.1,0.04]
[1749651612947,1.3669,2821.2,2821.1,0.04]
[1749651613562,7.95416635,2821.4,2820.1,0.04]
[1749651613563,0.55,2820.9,2820.1,0.04]
[1749651613858,0.1768,2820.5,2820.2,0.45942328]
[1749651614151,0.2546,2820.8,2820.1,0.04]
[1749651614152,0.1768,2820.4,2820.1,0.04]
[1749651614358,0.1768,2820.2,2820.1,0.04]
[1749651614659,0.4314,2820.2,2820.1,0.04]
[1749651617143,0.9369,2820.7,2820.1,0.2168]
[1749651618568,0.1768,2820.7,2820.1,0.2168]
[1749651619222,0.1768,2820.2,2820.1,0.04]
[1749651619425,1.001,2820.2,2820.1,0.04]
[1749651621235,1.551,2820.2,2820.1,0.04]
[1749651621563,9.50516635,2820.2,2820.1,0.04]
[1749651621762,10.45568298,2820.2,2820.1,0.04]
[1749651622063,2.50151663,2820.2,2820.1,0.04]
[1749651622226,1.551,2820.2,2820.1,0.04]
[1749651622747,1.001,2820.2,2820.1,0.04]
[1749651623146,1.551,2820.2,2820.1,0.04]
[1749651623930,9.50516635,2820.2,2820.1,0.04]
[1749651624147,1.551,2820.2,2820.1,0.04]
[1749651624346,1.3742,2820.2,2820.1,0.04]
[1749651624547,1.90462,2820.2,2820.1,0.04]
[1749651625087,1.123,2822.0,2820.1,0.04]
[1749651625296,1.14974258,2821.6,2820.1,0.04]
[1749651625581,0.7921,2821.6,2820.1,0.04]
[1749651625786,0.7627,2821.5,2820.1,0.04]
[1749651626133,0.7869,2821.1,2820.1,0.04]
[1749651626333,0.7869,2821.1,2820.2,0.7862]
[1749651627529,0.7532,2821.9,2820.6,3.54523985]
[1749651627731,0.7532,2821.9,2821.0,0.7511]
[1749651629838,0.7532,2821.9,2821.0,4.29586325]
[1749651630135,0.7532,2821.9,2821.0,0.7511]
[1749651630579,0.7532,2821.9,2821.0,10.7511]
[1749651630772,0.7532,2821.9,2821.2,10.0]
[1749651630958,0.8116,2822.8,2821.2,10.0]
[1749651631157,0.8116,2822.8,2821.1,10.0]
[1749651631360,0.55,2822.7,2821.1,10.0]
[1749651631567,0.55,2822.5,2821.2,5.063]
[1749651631818,0.55,2822.5,2821.3,10.0]
[1749651632107,0.8116,2822.6,2821.7,0.7909]
[1749651632605,0.8116,2822.6,2821.8,10.0]
[1749651632815,0.04,2822.9,2822.1,3.54342943]
[1749651632966,0.04,2822.9,2822.2,10.0]
[1749651633173,0.04,2822.9,2822.3,8.76256635]
[1749651633174,0.1768,2822.8,2822.3,8.76256635]
[1749651633411,0.04,2822.9,2822.6,0.1768]
[1749651633579,0.04,2822.9,2822.6,10.1768]
[1749651633768,0.04,2822.9,2822.8,14.33838183]
[1749651633969,0.04,2822.9,2822.8,18.45718183]
[1749651634205,0.1768,2823.8,2823.1,10.0]
[1749651634503,0.1768,2823.8,2823.3,10.0]
[1749651634709,0.1768,2823.8,2823.3,0.1768]
[1749651635216,0.1768,2823.8,2823.4,0.00442275]
[1749651635369,0.00421532,2824.5,2823.4,0.00442275]
[1749651635370,0.1768,2823.6,2823.4,0.00442275]
[1749651635572,0.00421532,2824.5,2823.4,0.00442275]
[1749651636004,0.1768,2823.9,2823.4,0.18122275]
[1749651636707,0.55,2823.8,2823.4,0.00442275]
[1749651637408,0.55,2823.6,2823.4,0.00442275]
[1749651638506,0.3184,2823.7,2823.4,0.00442275]
[1749651639182,0.55,2823.6,2823.4,0.00442275]
[1749651639693,8.82256635,2823.5,2823.4,0.00442275]
[1749651639886,1.75065664,2823.5,2823.4,0.00442275]
[1749651640087,0.8684,2823.5,2823.4,0.00442275]
[1749651640988,8.82256635,2823.5,2823.4,0.00442275]
[1749651641313,9.15434178,2823.5,2823.4,0.00442275]
[1749651641542,8.82256635,2823.5,2823.4,0.00442275]
[1749651641695,14.22235601,2823.5,2823.4,0.00442275]
[1749651641895,2.2906356,2823.5,2823.4,0.00442275]
[1749651642122,0.8684,2823.5,2823.4,0.00442275]
[1749651642421,0.8684,2823.4,2822.1,0.04]
[1749651642594,8.27256635,2823.1,2822.1,0.04]
[1749651642800,0.55,2823.0,2822.1,0.04]
[1749651642996,0.55,2822.8,2822.1,0.04]
[1749651643926,0.55,2822.6,2822.1,0.04]
[1749651644705,0.3184,2822.7,2822.1,0.04]
[1749651645852,8.0884,2823.7,2822.1,0.04]
[1749651646056,0.80884,2823.6,2822.2,3.54333498]
[1749651646210,0.3184,2823.7,2822.5,0.8118]
[1749651646712,0.1768,2823.1,2822.6,3.71955377]
[1749651646950,0.1768,2823.1,2822.6,10.1768]
[1749651647150,7.42630147,2826.2,2823.1,0.7601]
[1749651647151,0.3184,2824.4,2823.1,0.7601]
[1749651647351,0.1768,2823.5,2823.1,0.7601]
[1749651647555,0.3184,2824.4,2823.1,0.7601]
[1749651647556,0.68086527,2824.4,2823.1,0.7601]
[1749651647854,0.1768,2823.1,2822.9,1.132]
[1749651648026,0.1768,2823.1,2822.8,3.949]
[1749651648374,0.1768,2823.1,2822.8,10.0]
[1749651648513,0.1768,2823.1,2823.0,14.34563085]
[1749651648959,0.3184,2824.4,2823.0,0.8033]
[1749651649437,0.3184,2824.2,2822.7,11.131]
[1749651649638,8.50416635,2823.9,2822.7,1.131]
[1749651649815,8.50416635,2823.5,2822.1,0.04]
[1749651650148,0.55,2823.3,2822.1,0.04]
[1749651651124,0.55,2823.3,2822.2,0.8298]
[1749651652339,0.55,2823.3,2822.1,0.04]
[1749651652552,0.55,2823.1,2822.1,0.04]
[1749651654554,0.3184,2823.2,2822.1,0.04]
[1749651654765,0.3184,2823.2,2822.3,13.54319949]
[1749651654960,0.3184,2823.7,2822.4,8.28256572]
[1749651655115,0.3184,2823.7,2822.6,3.54276671]
[1749651655321,0.3184,2823.7,2822.5,14.67493338]
[1749651655719,0.3184,2823.7,2822.6,13.54275407]
[1749651655915,0.3184,2823.7,2822.6,10.0]
[1749651656125,0.3184,2823.7,2822.5,11.132]
[1749651656317,0.3184,2823.7,2822.6,3.54272772]
[1749651656514,0.3184,2823.7,2822.6,3.54273419]
[1749651656755,0.3184,2824.0,2822.8,0.8276]
[1749651657162,0.3184,2824.0,2822.9,3.942]
[1749651657520,0.3184,2824.0,2823.0,3.54232449]
[1749651657720,0.3184,2824.0,2823.1,3.941]
[1749651658016,0.1768,2823.6,2823.1,7.65998464]
[1749651658616,0.1768,2823.6,2823.1,4.1178]
[1749651658820,0.2452,2824.3,2822.8,0.8276]
[1749651659017,0.1768,2823.7,2823.2,0.1768]
[1749651659457,0.1768,2823.7,2823.2,4.1128]
[1749651659643,0.1768,2823.7,2823.2,0.1768]
[1749651659842,0.1768,2823.7,2823.2,4.1108]
[1749651660242,0.1768,2823.7,2823.2,0.1768]
[1749651660445,7.95838167,2824.5,2822.1,0.04]
[1749651660446,0.1768,2823.2,2822.5,0.1768]
[1749651660650,0.00421532,2824.5,2822.8,10.7641]
[1749651660830,0.1768,2823.6,2823.3,3.54188099]
[1749651661167,0.1768,2823.6,2823.1,3.54212285]
[1749651661381,0.1768,2823.6,2823.2,3.54206117]
[1749651661525,0.1768,2823.6,2823.0,13.71911871]
[1749651661865,0.1768,2823.6,2823.0,0.1768]
[1749651662158,0.1768,2823.6,2823.2,2.0]
[1749651662754,0.1768,2823.6,2823.3,3.93]
[1749651662960,0.1768,2823.6,2823.3,3.928]
[1749651663124,0.1768,2823.6,2823.2,3.131]
[1749651663125,0.1768,2823.6,2823.2,5.928]
[1749651663465,0.1768,2823.6,2823.2,2.0]
[1749651663664,0.7952,2823.3,2823.2,0.96512753]
[1749651664163,0.422,2823.6,2823.2,0.96512753]
[1749651664323,0.1768,2823.6,2823.2,0.96512753]
[1749651664524,0.2452,2824.0,2823.2,0.96512753]
[1749651664820,0.1768,2823.5,2823.3,3.943]
[1749651665225,0.00421532,2824.5,2823.3,3.943]
[1749651665531,0.1768,2823.7,2823.3,3.943]
[1749651666035,0.2452,2824.4,2823.7,0.7895]
[1749651666368,0.00421532,2824.5,2824.4,0.7895]
[1749651666598,0.00421532,2824.5,2823.8,0.7895]
[1749651666928,0.1768,2823.8,2823.4,3.96]
[1749651667165,0.2452,2824.3,2823.4,3.96]
[1749651667461,0.1768,2823.6,2823.2,0.96512753]
[1749651667962,0.1768,2823.4,2823.2,0.96512753]
[1749651669162,0.1768,2824.0,2823.3,0.1768]
[1749651669366,0.1768,2824.1,2823.6,13.54152047]
[1749651669527,0.00421532,2824.5,2823.9,13.54113859]
[1749651669727,0.00421532,2824.5,2824.4,13.54057498]
[1749651669962,0.00421532,2824.5,2824.4,15.46377498]
[1749651670577,0.04258079,2824.9,2824.5,10.0]
[1749651670775,0.04258079,2824.9,2824.4,11.9232]
[1749651670776,0.04258079,2824.9,2824.7,13.54019895]
[1749651670979,0.04258079,2824.9,2824.6,0.36087943]
[1749651671181,0.04258079,2824.9,2824.7,17.50419895]
[1749651671378,0.04258079,2824.9,2824.7,18.29559895]
[1749651671704,32.20078501,2824.8,2824.7,30.56845195]
[1749651671846,32.20078501,2824.8,2824.7,19.45559895]
[1749651672185,32.20078501,2824.8,2824.0,3.54098842]
[1749651672346,32.20078501,2824.8,2824.3,0.7787]
[1749651672547,32.20078501,2824.8,2824.3,10.7787]
[1749651672744,32.20078501,2824.8,2824.6,10.0]
[1749651672945,32.20078501,2824.8,2824.7,13.981]
[1749651673291,28.95801738,2824.8,2824.7,37.3035983]
[1749651673489,28.95801738,2824.8,2824.7,34.3585693]
[1749651673797,28.95801738,2824.8,2824.7,10.8282]
[1749651674099,28.95801738,2824.8,2823.7,0.8259]
[1749651674382,0.8333,2824.7,2823.7,0.8259]
[1749651674691,28.95801738,2824.8,2823.8,8.166463]
[1749651674888,28.95801738,2824.8,2823.7,1.18583043]
[1749651675408,28.95801738,2824.8,2823.8,3.998]
[1749651675608,28.95801738,2824.8,2823.7,1.18583043]
[1749651675763,28.95801738,2824.8,2823.9,3.998]
[1749651676205,28.95801738,2824.8,2824.0,3.997]
[1749651676645,28.95801738,2824.8,2824.1,10.0]
[1749651676818,28.95801738,2824.8,2824.0,3.997]
[1749651676819,28.95801738,2824.8,2824.0,5.497]
[1749651677120,0.7926,2824.7,2824.0,1.5]
[1749651677417,28.95801738,2824.8,2824.0,1.5]
[1749651677418,28.95801738,2824.8,2824.7,3.54019895]